[Event "Reykjavik Chess Congress 2018"]
[Site "Reykjavik"]
[Date "2018.02.04"]
[Round "8"]
[White "Baldursson, Haraldur"]
[Black "Jonsson, Gauti Pall"]
[Result "1-0"]
[ECO "A40"]
[WhiteElo "1942"]
[BlackElo "2161"]
[Annotator "NA"]
[PlyCount "75"]
[EventDate "2018.??.??"]
[EventType "swiss"]
[EventCountry "ISL"]
[SourceTitle "playchess.com"]
[Source "ChessBase"]
[SourceQuality "1"]
[TimeControl "40/5400+30:900+30"]

1. d4 {[%emt 0:00:00]} e6 {[%emt 0:00:26]} 2. Nf3 {[%emt 0:00:49]} f5 {[%emt 0:00:37]} 3. c4 {[%emt 0:02:53]} Nf6 {[%emt 0:01:56]} 4. Nc3 {[%emt 0:00:51]} Bb4 {[%emt 0:01:29]} 5. a3 {[%emt 0:02:41]} Bxc3+ {[%emt 0:00:44]} 6. bxc3 {[%emt 0:00:08]} O-O {[%emt 0:01:26]} 7. Qc2 {[%emt 0:02:47]} d6 {[%emt 0:02:03]} 8. a4 {[%emt 0:04:37]} Nc6 {[%emt 0:06:06]} 9. e3 {[%emt 0:05:37]} e5 {[%emt 0:06:57]} 10. Be2 {[%emt 0:03:33]} Qe8 {[%emt 0:11:39]} 11. d5 {[%emt 0:10:11]} Na5 {[%emt 0:04:19]} 12. Ba3 {[%emt 0:05:22]} b6 {[%emt 0:02:45]} 13. Bb4 {[%emt 0:07:24]} Nb7 {[%emt 0:05:21]} 14. a5 {[%emt 0:02:28]} Qg6 {[%emt 0:03:26]} 15. O-O {[%emt 0:03:49]} Qh6 $11 {[%emt 0:05:08]} 16. Ra3 {[%emt 0:09:05]} Ng4 {[%emt 0:05:50]} 17. h3 {[%emt 0:06:08]} Nf6 {[%emt 0:02:12]} 18. Rfa1 {[%emt 0:05:16]} bxa5 {[%emt 0:04:22]} 19. Bxa5 {[%emt 0:00:44]} Nxa5 {[%emt 0:02:17]} 20. Rxa5 {[%emt 0:00:14]} g5 {[%emt 0:03:53]} 21. Nh2 {[%emt 0:06:41]} g4 {[%emt 0:01:14]} 22. hxg4 {[%emt 0:03:46]} fxg4 {[%emt 0:06:10]} 23. g3 {[%emt 0:01:39]} a6 {[%emt 0:01:59]} 24. e4 {[%emt 0:05:33]} Qg5 {[%emt 0:02:51]} 25. c5 {[%emt 0:02:58]} h5 {[%emt 0:02:47]} 26. Bxa6 {[%emt 0:02:23]} h4 {[%emt 0:01:46]} 27. Bxc8 {[%emt 0:01:47]} Raxc8 {[%emt 0:02:48]} 28. Qe2 {[%emt 0:01:12]} hxg3 {[%emt 0:01:14]} 29. fxg3 {[%emt 0:00:24]} Qg6 {[%emt 0:00:47]} 30. R5a4 {[%emt 0:01:37]} c6 {[%emt 0:01:14]} 31. cxd6 {[%emt 0:01:16]} cxd5 {[%emt 0:00:23]} 32. exd5 {[%emt 0:00:28]} Rxc3 {[%emt 0:01:24]} 33. Qxe5 {[%emt 0:00:16]} Rc2 {[%emt 0:01:42]} 34. Rf4 {[%emt 0:01:03]} Qh7 {[%emt 0:04:25]} 35. Nxg4 {[%emt 0:00:21]} Nd7 {[%emt 0:02:30]} 36. Qg5+ {[%emt 0:00:27]} Kh8 {[%emt 0:00:14]} 37. Rxf8+ Nxf8 38. Qf6+ {[%emt 0:01:33]} 1-0

[Event "Reykjavik Chess Congress 2018"]
[Site "Reykjavik"]
[Date "2018.02.04"]
[Round "8"]
[White "Bjarnason, Olafur"]
[Black "Viglundsson, Bjorgvin"]
[Result "0-1"]
[ECO "A04"]
[WhiteElo "1818"]
[BlackElo "2167"]
[Annotator "NA"]
[PlyCount "70"]
[EventDate "2018.??.??"]
[EventType "swiss"]
[EventCountry "ISL"]
[SourceTitle "playchess.com"]
[Source "ChessBase"]
[SourceQuality "1"]
[TimeControl "40/5400+30:900+30"]

1. Nf3 {[%emt 0:00:00]} c5 {[%emt 0:00:29]} 2. c4 {[%emt 0:00:05]} g6 {[%emt 0:00:05]} 3. d4 {[%emt 0:01:13] A30: Symmetrical English: Double Fianchetto and Hedgehog} cxd4 {[%emt 0:01:18]} 4. Qxd4 {[%emt 0:04:49]} (4. Nxd4 Nc6 5. e4 Nf6 6. Nc3 d6 7. Be2 Nxd4 8. Qxd4 Bg7 9. Bg5 O-O 10. Qd2 a5 11. O-O a4 12. Rac1 Be6 13. Rfe1 Qa5 14. Bf1 Rfc8 15. b3 axb3 16. axb3 Qb4 17. Nd5 Qxd2 18. Bxd2 Bxd5 19. exd5 Kf8 20. Bc3 Ra3 {½-½ (67) Andreikin,D (2712)-Mamedov,R (2709) Huaian 2017}) 4... Nf6 {[%emt 0:00:27]} 5. Nc3 {[%emt 0:00:46]} Nc6 {[%emt 0:00:14]} 6. Qd1 {[%emt 0:00:51]} Bg7 {[%emt 0:00:30]} 7. e4 {[%emt 0:01:27]} d6 {[%emt 0:00:28]} 8. h3 {[%emt 0:00:47]} O-O {[%emt 0:01:23]} 9. Rb1 {[%emt 0:01:06]} Nd7 $146 {[%emt 0:02:15]} ({Predecessor:} 9... a6 10. Bd3 Nd7 11. Bd2 {1-0 (53) Sarvari,P-Banszky,M (1974) Hungary 2010}) 10. Be3 {[%emt 0:03:05]} Nc5 {[%emt 0:04:18]} 11. Bxc5 {[%emt 0:02:59]} dxc5 {[%emt 0:00:07]} 12. Qxd8 {[%emt 0:00:03]} Rxd8 {[%emt 0:00:16]} 13. Na4 {[%emt 0:05:43]} b6 {[%emt 0:04:42]} 14. Be2 {[%emt 0:03:18]} Bb7 {[%emt 0:02:48]} 15. O-O {[%emt 0:01:44]} Nd4 {[%emt 0:01:55]} 16. Nxd4 {[%emt 0:00:56]} Rxd4 {[%emt 0:00:12]} 17. Nc3 {[%emt 0:02:18]} Rad8 {[%emt 0:01:09]} 18. Nb5 {[%emt 0:03:08]} Rd2 {[%emt 0:05:38]} 19. Bf3 {[%emt 0:02:26]} Rxb2 {[%emt 0:04:28]} 20. Rxb2 {[%emt 0:00:35]} Bxb2 {[%emt 0:00:05]} 21. Nxa7 {[%emt 0:00:19]} Rd2 {[%emt 0:00:37]} 22. Rd1 {[%emt 0:03:52]} Rxd1+ {[%emt 0:05:49]} 23. Bxd1 {[%emt 0:00:19]} Bxe4 {[%emt 0:00:35]} 24. Nc8 {[%emt 0:00:23]} Bd3 {[%emt 0:11:17]} 25. Nxb6 {[%emt 0:01:10]} Ba3 {[%emt 0:03:08]} 26. Bb3 {[%emt 0:03:15]} e5 {[%emt 0:05:04]} 27. Nd5 {[%emt 0:04:58]} Kg7 {[%emt 0:05:56]} 28. Nc7 {[%emt 0:01:33]} f5 {[%emt 0:01:51]} (28... Kf6 $17 29. f3 e4 30. fxe4 Ke5) 29. Nb5 {[%emt 0:00:56]} Bb4 $15 {[%emt 0:01:08]} 30. a4 {[%emt 0:00:59]} e4 {[%emt 0:02:56]} 31. Nd6 {[%emt 0:01:24]} f4 {[%emt 0:01:09]} 32. Nb7 {[%emt 0:10:28]} e3 {[%emt 0:00:30]} 33. fxe3 {[%emt 0:00:14]} fxe3 {[%emt 0:00:09]} 34. Bd1 {[%emt 0:00:24]} Bxc4 {[%emt 0:01:39]} 35. a5 {[%emt 0:00:06]} e2 {[%emt 0:00:41]} 0-1

[Event "Reykjavik Chess Congress 2018"]
[Site "Reykjavik"]
[Date "2018.02.07"]
[Round "9"]
[White "Halldorsson, Bragi"]
[Black "Birkisson, Bjorn Holm"]
[Result "1-0"]
[ECO "D58"]
[WhiteElo "2082"]
[BlackElo "2084"]
[Annotator "NA RC"]
[PlyCount "45"]
[EventDate "2018.??.??"]
[EventType "swiss"]
[EventCountry "ISL"]
[SourceTitle "playchess.com"]
[Source "ChessBase"]
[SourceQuality "1"]
[TimeControl "40/5400+30:900+30"]

{[%evp 8,45,31,32767,32767,0,32767,32767,32767,32767,7,17,16,20,12,32767,34,-10,0,0,85,13,73,79,92,72,83,81,74,75,1083,1167,956,774,1154,1260,1222,1389,2152,29975]} 1. d4 {[%emt 0:00:00]} d5 {[%emt 0:06:36]} 2. c4 {[%emt 0:00:00]} e6 {[%emt 0:00:09]} 3. Nc3 {[%emt 0:00:00]} Be7 {[%emt 0:00:11]} 4. Nf3 {[%emt 0:00:02]} Nf6 {[%emt 0:00:12]} 5. Bg5 {[%emt 0:00:11]} h6 {[%emt 0:00:07]} 6. Bh4 {[%emt 0:00:26] LiveBook: 4143 Partien} O-O {[%emt 0:00:27]} 7. e3 {[%emt 0:00:08]} b6 {[%emt 0:00:27]} 8. Qc2 {[%emt 0:00:40]} c5 {[%emt 0:19:54]} 9. dxc5 {[%emt 0:02:26] D58: Queen's Gambit Declined: Tartakower Defence} (9. Rd1 Nbd7 10. cxd5 Nxd5 11. Bxe7 Qxe7 12. Nxd5 exd5 13. dxc5 Nxc5 14. Be2 Qe4 15. Qd2 Qg6 16. O-O Bh3 {½-½ (48) Halkias,S (2579)-Grachev,B (2675) Aix les Bains 2011}) 9... bxc5 {[%emt 0:03:10]} 10. Be2 {[%emt 0:05:29]} Nc6 $146 {[%emt 0:01:14]} ({Predecessor:} 10... Bb7 11. O-O dxc4 12. Rfd1 Nd5 13. Bxe7 Qxe7 14. Bxc4 Nxc3 15. Qxc3 Nd7 16. Be2 Rfd8 {1-0 (39) Kulpinski,P (2074)-Traczyk,T (1988) Krynica 2005}) 11. O-O {[%emt 0:00:34]} d4 {[%emt 0:08:11]} 12. Rfd1 {[%emt 0:01:12]} e5 {[%emt 0:01:00]} 13. a3 {[%emt 0:06:03]} Qc7 {[%emt 0:14:22]} (13... Be6 $11 {remains equal.}) 14. Bxf6 {[%emt 0:03:15]} (14. Nd5 $16 Qd6 15. b4) 14... dxc3 {[%emt 0:00:40]} 15. Bxe7 {[%emt 0:00:44]} cxb2 {[%emt 0:00:05]} 16. Bxf8 {[%emt 0:00:40]} ({Much worse is} 16. Qxb2 Qxe7 17. Qb5 Bd7 $11) ({Much weaker is} 16. Bxc5 bxa1=N 17. Rxa1 Rd8 $15) 16... bxa1=Q {[%emt 0:00:14]} 17. Rxa1 {[%emt 0:00:08]} Kxf8 {[%emt 0:00:07]} 18. Qh7 {[%emt 0:01:01]} f6 $2 {[%emt 0:00:06]} (18... Ne7 $16) 19. Qh8+ {[%emt 0:02:11]} Kf7 {[%emt 0:01:21]} 20. Nh4 {[%emt 0:00:36]} Bb7 {[%emt 0:00:57]} 21. Bh5+ {[%emt 0:00:57]} Ke6 {[%emt 0:00:13]} 22. Qh7 {[%emt 0:04:57]} Qe7 {[%emt 0:04:12]} 23. Rd1 {[%emt 0:06:28] Kd5} 1-0

[Event "Reykjavik Chess Congress 2018"]
[Site "Reykjavik"]
[Date "2018.02.07"]
[Round "9"]
[White "Valdimarsson, Einar"]
[Black "Baldursson, Haraldur"]
[Result "1-0"]
[ECO "A45"]
[WhiteElo "2023"]
[BlackElo "1942"]
[Annotator "NA RC"]
[PlyCount "37"]
[EventDate "2018.??.??"]
[EventType "swiss"]
[EventCountry "ISL"]
[SourceTitle "playchess.com"]
[Source "ChessBase"]
[SourceQuality "1"]
[TimeControl "40/5400+30:900+30"]

{[%evp 10,37,0,-14,2,32767,19,6,16,10,14,31,34,42,35,21,30,-6,60,88,41,116,263,286,708,761,1035,1131,29998,29999]} 1. d4 {[%emt 0:00:00]} Nf6 {[%emt 0:02:09]} 2. Bf4 {[%emt 0:00:05]} d5 {[%emt 0:00:51]} 3. Nd2 {[%emt 0:00:53]} e6 {[%emt 0:03:44]} 4. e3 {[%emt 0:00:37]} Bd6 {[%emt 0:02:32]} 5. Bg3 {[%emt 0:00:10]} c5 {[%emt 0:03:44] LiveBook: 33 Games} 6. c3 {[%emt 0:00:16]} Nc6 {[%emt 0:02:02]} 7. Ngf3 {[%emt 0:00:42]} Qe7 {[%emt 0:04:25]} 8. Ne5 {[%emt 0:02:55]} O-O {[%emt 0:08:07] D02: 1 d4 d5 2 Nf3 sidelines, including 2...Nf6 3 g3 and 2...Nf6 3 Bf4} (8... Bxe5 9. dxe5 Nd7 10. Bb5 O-O 11. Bxc6 bxc6 12. c4 Nb6 13. b3 a5 14. O-O a4 15. Qc2 axb3 16. axb3 {1-0 (47) Kamsky,G (2676)-Popov,I (2609) Sochi 2017}) 9. Bd3 {[%emt 0:00:34]} h6 {[%emt 0:03:42]} 10. O-O $146 {[%emt 0:06:05]} ({Find the theoretical novelty and annotate with similar games:} 10. f4 Bd7 11. O-O c4 12. Bc2 {1-0 (24) Kovacs Pinter,M (2143)-Kovacs,M (2102) Hungary 2009}) 10... Qc7 {[%emt 0:06:45]} 11. f4 {[%emt 0:02:17]} Nd7 {[%emt 0:05:33]} 12. Qh5 {[%emt 0:05:27]} f5 {[%emt 0:03:44]} 13. Bh4 {[%emt 0:01:33]} Nf6 {[%emt 0:02:47]} (13... Qb6 $11) 14. Bxf6 $1 {[%emt 0:00:31]} Rxf6 {[%emt 0:02:08]} 15. g4 {[%emt 0:04:18]} fxg4 $2 {[%emt 0:04:40]} (15... Bxe5 $16 16. fxe5 Rf8) 16. Nxg4 {[%emt 0:01:39]} Rf8 $2 {[%emt 0:04:35]} (16... Rf7 17. Qg6 Kf8) 17. Qg6 {[%emt 0:02:20]} Rf5 {[%emt 0:02:38]} 18. Bxf5 $18 {[%emt 0:01:44]} exf5 {[%emt 0:00:17]} 19. Nf6+ {[%emt 0:00:10] Bf8} 1-0

[Event "Reykjavik Chess Congress 2018"]
[Site "Reykjavik"]
[Date "2018.02.07"]
[Round "9"]
[White "Ragnarsson, Johann"]
[Black "Viglundsson, Bjorgvin"]
[Result "0-1"]
[ECO "D20"]
[WhiteElo "1991"]
[BlackElo "2167"]
[Annotator "RC"]
[PlyCount "42"]
[EventDate "2018.??.??"]
[EventType "swiss"]
[EventCountry "ISL"]
[SourceTitle "playchess.com"]
[Source "ChessBase"]
[SourceQuality "1"]
[TimeControl "40/5400+30:900+30"]

1. d4 {[%emt 0:00:00]} d5 {[%emt 0:00:04]} 2. c4 {[%emt 0:00:00]} dxc4 {[%emt 0:00:39]} 3. Nc3 {[%emt 0:00:49]} a6 {[%emt 0:00:54]} 4. e3 {[%emt 0:01:39]} b5 {[%emt 0:01:40]} 5. a4 {[%emt 0:02:44]} b4 {[%emt 0:00:38]} 6. Bxc4 {[%emt 0:01:39]} Bb7 {[%emt 0:01:06]} 7. Qb3 {[%emt 0:16:42]} e6 {[%emt 0:01:00]} 8. d5 {[%emt 0:00:30]} exd5 {[%emt 0:08:28]} 9. Nxd5 {[%emt 0:02:40]} Bd6 {[%emt 0:07:22]} 10. e4 {[%emt 0:09:41]} Nc6 {[%emt 0:06:26]} 11. Nf3 {[%emt 0:12:27]} Na5 {[%emt 0:08:18]} 12. Qc2 {[%emt 0:01:01]} Nxc4 {[%emt 0:01:31]} 13. Qxc4 {[%emt 0:00:10]} Ne7 {[%emt 0:00:49]} 14. Nxe7 {[%emt 0:10:33]} Qxe7 {[%emt 0:07:08]} 15. e5 {[%emt 0:03:51]} Bxf3 {[%emt 0:03:48]} 16. O-O {[%emt 0:00:07]} Qxe5 {[%emt 0:02:24]} 17. Qh4 {[%emt 0:11:28]} Bd5 {[%emt 0:05:48]} 18. Bg5 {[%emt 0:01:59]} O-O {[%emt 0:00:44]} 19. Rfe1 {[%emt 0:00:15]} Qf5 {[%emt 0:01:17]} 20. Re3 {[%emt 0:00:17]} Rfe8 {[%emt 0:01:04]} 21. g4 {[%emt 0:00:42]} Qg6 {[%emt 0:01:29]} 0-1